[Event "30th NATO Chess-ch 2019"]
[Site "Berlin"]
[Date "2019.09.19"]
[Round "6.13"]
[White "Pedersen, Finn"]
[Black "Onley, David E"]
[Result "1-0"]
[ECO "A15"]
[WhiteElo "2305"]
[BlackElo "2103"]
[Annotator "NA"]
[PlyCount "133"]
[EventDate "2019.09.16"]
[EventType "swiss"]
[EventCountry "GER"]
[SourceTitle "playchess.com"]
[Source "ChessBase"]
[SourceQuality "1"]
[TimeControl "40/7200:1800"]

1. Nf3 {[%emt 2:00:00]} Nf6 {[%emt 1:59:53]} 2. c4 {[%emt 1:59:32]} g6 {[%emt 1:59:32]} 3. b3 {[%emt 1:58:36]} Bg7 {[%emt 1:58:28]} 4. Bb2 {[%emt 1:58:28]} O-O {[%emt 1:57:35]} 5. g3 {[%emt 1:58:12]} a5 {[%emt 1:56:23]} 6. Bg2 {[%emt 1:56:23]} d6 {[%emt 1:47:39]} 7. O-O {[%emt 1:56:20]} e5 {[%emt 1:56:20]} 8. Nc3 {[%emt 1:54:49]} h6 {[%emt 1:45:14]} 9. d3 {[%emt 1:45:14]} Nbd7 {[%emt 1:41:26]} 10. a3 {[%emt 1:48:12]} Re8 {[%emt 1:37:34]} 11. e4 {[%emt 1:46:32]} Nc5 {[%emt 1:35:54]} 12. b4 {[%emt 1:44:03]} axb4 {[%emt 1:32:50]} 13. axb4 {[%emt 1:43:57]} Rxa1 {[%emt 1:32:37]} 14. Bxa1 {[%emt 1:43:49]} Na6 {[%emt 1:31:42]} 15. Qb1 {[%emt 1:41:02]} Nh7 {[%emt 1:23:21]} 16. h3 {[%emt 1:32:20]} Ng5 {[%emt 1:18:14]} 17. Kh2 {[%emt 1:18:14]} c6 {[%emt 1:09:09]} 18. Ng1 {[%emt 1:28:51]} Ne6 {[%emt 1:28:51]} 19. Nce2 {[%emt 1:27:12]} Qb6 {[%emt 1:27:12]} 20. Bc3 {[%emt 0:59:20]} Rf8 {[%emt 1:27:00]} 21. Nf3 {[%emt 1:19:30]} Bd7 {[%emt 1:19:30]} 22. Qb2 {[%emt 0:45:49]} c5 {[%emt 1:16:31]} 23. b5 {[%emt 1:16:10]} Nb4 {[%emt 0:36:37]} 24. Bxb4 {[%emt 1:15:41]} cxb4 {[%emt 0:36:30]} 25. Qxb4 {[%emt 0:36:30]} Nc5 {[%emt 0:35:54]} 26. Qb1 {[%emt 1:12:10]} Be6 {[%emt 0:33:48]} 27. Nh4 {[%emt 1:09:00]} Ra8 {[%emt 1:09:00]} 28. f4 {[%emt 1:08:39]} exf4 {[%emt 0:28:01]} 29. gxf4 {[%emt 1:07:08]} Ra3 {[%emt 0:23:24]} 30. d4 {[%emt 1:01:56]} Bxc4 {[%emt 0:20:15]} 31. dxc5 {[%emt 1:01:21]} Qd8 {[%emt 0:19:44]} 32. Qb4 {[%emt 0:57:01]} Bxe2 {[%emt 0:57:01]} 33. Qxa3 {[%emt 0:56:43]} Bxf1 {[%emt 0:56:43]} 34. Nf3 {[%emt 0:54:34]} Bxg2 {[%emt 0:14:47]} 35. Kxg2 {[%emt 0:14:47]} dxc5 {[%emt 0:14:19]} 36. Qxc5 {[%emt 0:54:18]} Bf8 {[%emt 0:09:42]} 37. Qd4 {[%emt 0:53:04]} Qc8 {[%emt 0:09:15]} 38. Qd5 {[%emt 0:52:30]} Bc5 {[%emt 0:06:36]} 39. Ne5 {[%emt 0:51:53]} Qc7 {[%emt 0:04:29]} 40. Nxf7 {[%emt 0:45:47]} Qxf7 {[%emt 0:03:01]} 41. Qxc5 {[%emt 0:45:43]} Qa2+ 42. Kg3 {[%emt 0:27:18]} Qb3+ {[%emt 1:12:30]} 43. Kh4 {[%emt 0:23:11]} Qf3 {[%emt 1:12:02]} 44. Qc8+ {[%emt 1:11:38]} Kf7 {[%emt 1:11:38]} 45. Qxb7+ {[%emt 1:11:25]} Kf8 {[%emt 0:16:30]} 46. Qc8+ {[%emt 1:10:42]} Kf7 {[%emt 0:15:03]} 47. Qd7+ {[%emt 1:09:39]} Kf8 {[%emt 1:09:39]} 48. Qd2 {[%emt 0:14:36]} Qxe4 {[%emt 0:13:21]} 49. b6 {[%emt 0:58:18]} Kf7 {[%emt 0:08:45]} 50. Kg3 {[%emt 0:56:35]} Kf8 {[%emt 0:07:39]} 51. Qd8+ {[%emt 0:49:04]} Kf7 {[%emt 0:07:24]} 52. Qc7+ {[%emt 0:48:54]} Kg8 {[%emt 0:48:54]} 53. Kf2 {[%emt 0:45:38]} Qd4+ {[%emt 0:45:38]} 54. Ke2 {[%emt 0:05:35]} Qe4+ {[%emt 0:04:01]} 55. Kd2 {[%emt 0:04:01]} Qd4+ {[%emt 0:03:04]} 56. Kc2 {[%emt 0:44:29]} Qa4+ {[%emt 0:02:55]} 57. Kd3 {[%emt 0:02:55]} Qb3+ {[%emt 0:02:46]} 58. Kd4 {[%emt 0:44:01]} Qb2+ {[%emt 0:02:39]} 59. Kd5 {[%emt 0:02:39]} Qg2+ {[%emt 0:02:37]} 60. Kd6 {[%emt 0:02:37]} Qd2+ {[%emt 0:02:35]} 61. Ke7 {[%emt 0:02:35]} Qe3+ {[%emt 0:39:57]} 62. Kd8 {[%emt 0:02:26]} Qd3+ {[%emt 0:01:41]} 63. Qd7 {[%emt 0:36:46]} Qa6 {[%emt 0:01:02]} 64. Qd5+ {[%emt 0:01:02]} Kg7 {[%emt 0:00:56]} 65. Kc7 {[%emt 0:00:56]} h5 {[%emt 0:33:26]} 66. b7 {[%emt 0:00:44]} Qa7 {[%emt 0:00:43]} 67. Qb5 {[%emt 0:00:43]} 1-0

[Event "30th NATO Chess-ch 2019"]
[Site "Berlin"]
[Date "2019.09.19"]
[Round "6.14"]
[White "Kende, Gyorgy"]
[Black "Valeinis, Janis"]
[Result "1/2-1/2"]
[ECO "B30"]
[WhiteElo "2036"]
[BlackElo "2206"]
[Annotator "ChessBase"]
[PlyCount "54"]
[EventDate "2019.09.16"]
[EventType "swiss"]
[EventCountry "GER"]
[SourceTitle "playchess.com"]
[Source "ChessBase"]
[SourceQuality "1"]
[TimeControl "40/7200:1800"]

1. e4 {[%emt 1:59:51]} c5 {[%emt 1:59:51]} 2. Nf3 {[%emt 1:59:32]} Nc6 {[%emt 1:59:47]} 3. Nc3 {[%emt 1:58:39]} g6 {[%emt 1:58:31]} 4. Bc4 {[%emt 1:58:31]} Bg7 {[%emt 1:58:05]} 5. O-O {[%emt 1:50:44]} d6 {[%emt 1:56:31]} 6. d3 {[%emt 1:56:31]} Nf6 {[%emt 1:55:56]} 7. h3 {[%emt 1:55:56]} O-O {[%emt 1:55:44]} 8. a3 {[%emt 1:55:44]} a6 {[%emt 1:53:05]} 9. Be3 {[%emt 1:40:20]} b5 {[%emt 1:52:53]} 10. Ba2 {[%emt 1:52:53]} e5 {[%emt 1:36:27]} 11. Nd5 {[%emt 1:33:52]} Nxd5 {[%emt 1:35:07]} 12. Bxd5 {[%emt 1:32:19]} Bd7 {[%emt 1:29:56]} 13. c3 {[%emt 1:30:18]} Rc8 {[%emt 1:30:18]} 14. b4 {[%emt 1:29:21]} Qe7 {[%emt 1:28:46]} 15. Qb3 {[%emt 1:18:52]} Kh8 {[%emt 1:28:23]} 16. Ng5 {[%emt 1:28:23]} Nd8 {[%emt 1:15:39]} 17. c4 {[%emt 1:13:59]} f5 {[%emt 1:27:44]} 18. exf5 {[%emt 1:27:44]} gxf5 {[%emt 1:27:20]} 19. Bd2 {[%emt 1:04:35]} Bf6 {[%emt 1:18:54]} 20. f4 {[%emt 1:01:41]} Qg7 {[%emt 1:12:38]} 21. Rae1 {[%emt 0:57:27]} exf4 {[%emt 0:49:11]} 22. Nf3 {[%emt 0:54:34] Bd2} Z0 {dxc6 Bd7} 23. cxb5 Bc6 24. Z0 Bd7 25. Z0 Nf7 26. Rb1 {b1=N Bc1 Nd2+} Z0 {c2+ ---} 27. Qc4 Z0 {Rh8+} 1/2-1/2

[Event "30th NATO Chess-ch 2019"]
[Site "Berlin"]
[Date "2019.09.19"]
[Round "6.15"]
[White "Fichtner, Ewald"]
[Black "Werksma, Arie"]
[Result "0-1"]
[ECO "D02"]
[WhiteElo "2046"]
[BlackElo "2197"]
[Annotator "NA"]
[PlyCount "88"]
[EventDate "2019.09.16"]
[EventType "swiss"]
[EventCountry "GER"]
[SourceTitle "playchess.com"]
[Source "ChessBase"]
[SourceQuality "1"]
[TimeControl "40/7200:1800"]

1. d4 {[%emt 1:59:57]} Nf6 {[%emt 1:59:54]} 2. Bf4 {[%emt 1:59:52]} e6 {[%emt 1:59:48]} 3. e3 {[%emt 1:59:48]} b6 {[%emt 1:59:41]} 4. Nf3 {[%emt 1:59:20]} Bb7 {[%emt 1:59:20]} 5. Nbd2 {[%emt 1:58:45]} Be7 {[%emt 1:58:10]} 6. Bd3 {[%emt 1:58:39]} d5 {[%emt 1:58:39]} 7. Ne5 {[%emt 1:57:40]} a6 {[%emt 1:48:01]} 8. Qf3 {[%emt 1:48:01]} Nbd7 {[%emt 1:56:53]} 9. c3 {[%emt 1:54:04]} Nxe5 {[%emt 1:39:39]} 10. dxe5 {[%emt 1:52:22]} Nd7 {[%emt 1:39:17]} 11. h4 {[%emt 1:39:17]} Nc5 {[%emt 1:45:56]} 12. Bc2 {[%emt 1:45:43]} d4 {[%emt 1:32:13]} 13. Qg4 {[%emt 1:45:13]} dxc3 {[%emt 1:28:28]} 14. bxc3 {[%emt 1:44:56]} Nd3+ {[%emt 1:44:56]} 15. Ke2 {[%emt 1:44:04]} Nxf4+ {[%emt 1:19:20]} 16. exf4 {[%emt 1:37:11]} Qd7 {[%emt 1:37:11]} 17. Rad1 {[%emt 1:29:54]} O-O-O {[%emt 1:17:21]} 18. c4 {[%emt 1:17:21]} Qd4 {[%emt 1:15:23]} 19. Rh3 {[%emt 1:11:57]} Bc5 {[%emt 1:08:56]} 20. Qg3 {[%emt 1:08:56]} g6 {[%emt 1:03:51]} 21. Kf1 {[%emt 1:02:15]} Rd7 {[%emt 0:57:02]} 22. Kg1 {[%emt 0:50:48]} Rhd8 {[%emt 0:55:12]} 23. Nf1 {[%emt 0:43:38]} Qxc4 {[%emt 0:51:10]} 24. Rxd7 {[%emt 0:43:16]} Rxd7 {[%emt 0:51:05]} 25. Bb3 {[%emt 0:42:50]} Qe2 {[%emt 0:42:50]} 26. Ne3 {[%emt 0:40:16]} Rd2 {[%emt 0:40:16]} 27. h5 {[%emt 0:37:49]} Qe1+ {[%emt 0:44:39]} 28. Kh2 {[%emt 0:44:39]} Bxe3 {[%emt 0:44:13]} 29. Qxe3 {[%emt 0:36:30]} Qxe3 {[%emt 0:43:54]} 30. Rxe3 {[%emt 0:36:03]} Rxf2 {[%emt 0:43:42]} 31. Kg3 {[%emt 0:43:42]} Rxg2+ {[%emt 0:43:27]} 32. Kh4 {[%emt 0:43:27]} Rh2+ {[%emt 0:42:50]} 33. Kg5 {[%emt 0:33:50]} Rxh5+ {[%emt 0:33:50]} 34. Kf6 {[%emt 0:42:37]} Rf5+ {[%emt 0:41:44]} 35. Ke7 {[%emt 0:33:16]} Rxf4 {[%emt 0:33:16]} 36. Rd3 {[%emt 0:33:07]} Bd5 {[%emt 0:33:07]} 37. Bxd5 {[%emt 0:30:43]} exd5 {[%emt 0:39:19]} 38. Rxd5 {[%emt 0:30:39]} Rf5 {[%emt 0:38:49]} 39. a4 {[%emt 0:27:27]} h5 {[%emt 0:27:27]} 40. a5 {[%emt 0:27:10]} bxa5 {[%emt 0:37:54]} 41. Rxa5 {[%emt 0:37:54]} Kb7 {[%emt 0:37:31]} 42. Kd7 {[%emt 0:25:46]} Kb6 {[%emt 0:37:12]} 43. Rd5 {[%emt 0:37:12]} h4 {[%emt 0:36:34]} 44. Kc8 {[%emt 0:36:34]} h3 {[%emt 0:24:16]} 0-1

[Event "30th NATO Chess-ch 2019"]
[Site "Berlin"]
[Date "2019.09.19"]
[Round "6.16"]
[White "Pavlidis, Antonios"]
[Black "Balmaceda, Enrico"]
[Result "1-0"]
[ECO "A85"]
[WhiteElo "2550"]
[BlackElo "2006"]
[Annotator "ChessBase"]
[PlyCount "53"]
[EventDate "2019.09.16"]
[EventType "swiss"]
[EventCountry "GER"]
[SourceTitle "playchess.com"]
[Source "ChessBase"]
[SourceQuality "1"]
[TimeControl "40/7200:1800"]

1. d4 {[%emt 1:59:42]} f5 {[%emt 1:59:42]} 2. c4 {[%emt 1:59:42]} Nf6 {[%emt 1:59:32]} 3. Nc3 {[%emt 1:59:32]} g6 {[%emt 1:57:40]} 4. h4 {[%emt 1:57:40]} d6 {[%emt 1:56:13]} 5. h5 {[%emt 1:52:38]} Nxh5 {[%emt 1:52:38]} 6. Rxh5 {[%emt 1:55:57]} gxh5 {[%emt 1:55:55]} 7. e4 {[%emt 1:46:27]} c6 {[%emt 1:46:27]} 8. Qxh5+ {[%emt 1:44:09]} Kd7 {[%emt 1:51:52]} 9. Qxf5+ {[%emt 1:39:45]} e6 {[%emt 1:39:45]} 10. Qf3 {[%emt 1:49:44]} Bg7 {[%emt 1:43:07]} 11. e5 {[%emt 1:43:07]} Qf8 {[%emt 1:37:49]} 12. Bf4 {[%emt 1:22:50]} dxe5 {[%emt 1:31:18]} 13. dxe5 {[%emt 1:31:18]} Kc7 {[%emt 1:28:10]} 14. O-O-O {[%emt 1:08:10]} Bd7 {[%emt 1:22:22]} 15. Qe3 {[%emt 1:03:36]} Na6 {[%emt 1:19:28]} 16. Ne4 {[%emt 1:19:28]} h5 {[%emt 1:05:54]} 17. Nf3 {[%emt 1:05:54]} Bh6 {[%emt 1:00:45]} 18. Bxh6 {[%emt 0:51:34]} Qxh6 {[%emt 0:55:36]} 19. Nfg5 {[%emt 0:50:37]} b6 {[%emt 0:50:44]} 20. f4 {[%emt 0:50:44]} Rhf8 {[%emt 0:45:04]} 21. Qa3 {[%emt 0:34:17]} Nb8 {[%emt 0:41:55]} 22. Qd6+ {[%emt 0:30:26]} Kb7 {[%emt 0:40:04]} 23. g3 {[%emt 0:27:45]} h4 {[%emt 0:35:44]} 24. Qe7 {[%emt 0:35:44]} hxg3 {[%emt 0:27:08]} 25. Rxd7+ {[%emt 0:24:42]} Nxd7 {[%emt 0:35:01]} 26. Qxd7+ {[%emt 0:24:34]} Ka6 {[%emt 0:24:34]} 27. Nc5+ {[%emt 0:23:29]} 1-0

[Event "30th NATO Chess-ch 2019"]
[Site "Berlin"]
[Date "2019.09.19"]
[Round "6.17"]
[White "Parker, Glen D"]
[Black "Stentebjerg-Hansen, Per"]
[Result "0-1"]
[ECO "B01"]
[WhiteElo "2014"]
[BlackElo "2178"]
[Annotator "NA"]
[PlyCount "52"]
[EventDate "2019.09.16"]
[EventType "swiss"]
[EventCountry "GER"]
[SourceTitle "playchess.com"]
[Source "ChessBase"]
[SourceQuality "1"]
[TimeControl "40/7200:1800"]

1. e4 {[%emt 2:00:00]} d5 {[%emt 1:59:39]} 2. exd5 {[%emt 1:57:26]} Nf6 {[%emt 1:59:16]} 3. d4 {[%emt 1:56:26]} Bg4 {[%emt 1:58:46]} 4. f3 {[%emt 1:54:44]} Bf5 {[%emt 1:54:44]} 5. Bb5+ {[%emt 1:58:33]} Nbd7 {[%emt 1:48:18]} 6. c4 {[%emt 1:46:45]} e6 {[%emt 1:56:51]} 7. dxe6 {[%emt 1:56:51]} Bxe6 {[%emt 1:56:32]} 8. d5 {[%emt 1:41:57]} Bf5 {[%emt 1:55:54]} 9. g4 {[%emt 1:37:23]} Bg6 {[%emt 1:51:02]} 10. Nc3 {[%emt 1:32:17]} Bc5 {[%emt 1:42:47]} 11. h4 {[%emt 1:23:43]} h6 {[%emt 1:23:43]} 12. h5 {[%emt 1:20:49]} Bh7 {[%emt 1:27:01]} 13. g5 {[%emt 1:27:01]} O-O {[%emt 1:09:33]} 14. Nge2 {[%emt 0:58:42]} Ne5 {[%emt 0:58:42]} 15. gxf6 {[%emt 0:50:49]} Nxf3+ {[%emt 1:03:38]} 16. Kf1 {[%emt 0:50:41]} Qxf6 {[%emt 1:02:37]} 17. Nf4 {[%emt 0:47:17]} Ne5 {[%emt 0:59:16]} 18. Rh3 {[%emt 0:59:16]} g5 {[%emt 0:53:18]} 19. b4 {[%emt 0:39:16]} Bxb4 {[%emt 0:39:16]} 20. Qd4 {[%emt 0:36:36]} b6 {[%emt 0:36:03]} 21. Ne4 {[%emt 0:31:43]} Qf5 {[%emt 0:28:36]} 22. Ng3 {[%emt 0:24:15]} Qg4 {[%emt 0:24:15]} 23. Kg2 {[%emt 0:17:13]} Qf3+ {[%emt 0:17:13]} 24. Kg1 {[%emt 0:14:47]} Bc5 {[%emt 0:23:41]} 25. Qxc5 {[%emt 0:23:41]} bxc5 {[%emt 0:23:17]} 26. Bb2 {[%emt 0:10:15]} Qxf4 {[%emt 0:10:15]} 0-1

[Event "30th NATO Chess-ch 2019"]
[Site "Berlin"]
[Date "2019.09.19"]
[Round "6.18"]
[White "Randall, Gordon"]
[Black "Mestek, Igor"]
[Result "0-1"]
[ECO "A53"]
[WhiteElo "1975"]
[BlackElo "2087"]
[Annotator "NA"]
[PlyCount "139"]
[EventDate "2019.09.16"]
[EventType "swiss"]
[EventCountry "GER"]
[SourceTitle "playchess.com"]
[Source "ChessBase"]
[SourceQuality "1"]
[TimeControl "40/7200:1800"]

1. d4 {[%emt 1:59:57]} d6 {[%emt 1:59:57]} 2. e4 {[%emt 1:59:34]} Nf6 {[%emt 1:59:34]} 3. f3 {[%emt 1:59:37]} c6 {[%emt 1:59:12]} 4. c4 {[%emt 1:58:36]} e5 {[%emt 1:58:10]} 5. Be3 {[%emt 1:50:39]} Be7 {[%emt 1:50:39]} 6. Nc3 {[%emt 1:47:25]} Nbd7 {[%emt 1:55:35]} 7. Nge2 {[%emt 1:55:35]} O-O {[%emt 1:44:25]} 8. Qd2 {[%emt 1:38:23]} d5 {[%emt 1:52:43]} 9. Ng3 {[%emt 1:26:42]} dxe4 {[%emt 1:26:42]} 10. dxe5 {[%emt 1:50:17]} Nxe5 {[%emt 1:49:47]} 11. Ngxe4 {[%emt 1:49:47]} Bf5 {[%emt 1:37:12]} 12. Bd4 {[%emt 1:17:26]} Nxe4 {[%emt 1:29:27]} 13. Nxe4 {[%emt 1:14:12]} Bxe4 {[%emt 1:14:12]} 14. Bxe5 {[%emt 1:22:02]} Qxd2+ {[%emt 1:12:43]} 15. Kxd2 {[%emt 1:12:42]} Bb4+ {[%emt 1:16:10]} 16. Ke3 {[%emt 1:16:10]} Bg6 {[%emt 1:15:33]} 17. a3 {[%emt 1:02:09]} Bc5+ {[%emt 1:11:34]} 18. Kf4 {[%emt 1:00:06]} f6 {[%emt 1:04:17]} 19. Bc3 {[%emt 0:58:45]} Rfe8 {[%emt 1:04:08]} 20. Rd1 {[%emt 0:52:59]} Rad8 {[%emt 0:56:07]} 21. Rxd8 {[%emt 0:49:25]} Rxd8 {[%emt 0:55:50]} 22. Be2 {[%emt 0:55:50]} Re8 {[%emt 0:53:52]} 23. Bd1 {[%emt 0:53:52]} Bd6+ {[%emt 0:53:35]} 24. Kg4 {[%emt 0:53:35]} h5+ {[%emt 0:49:54]} 25. Kh3 {[%emt 0:49:54]} Bf5+ {[%emt 0:42:34]} 26. g4 {[%emt 0:32:43]} hxg4+ {[%emt 0:42:27]} 27. Kg2 {[%emt 0:32:27]} gxf3+ {[%emt 0:32:27]} 28. Bxf3 {[%emt 0:35:18]} Be4 {[%emt 0:34:51]} 29. Rd1 {[%emt 0:34:51]} Bxf3+ {[%emt 0:28:42]} 30. Kxf3 {[%emt 0:34:16]} Re6 {[%emt 0:29:48]} 31. b4 {[%emt 0:23:31]} Kf7 {[%emt 0:25:28]} 32. h3 {[%emt 0:25:28]} c5 {[%emt 0:25:17]} 33. Rd5 {[%emt 0:21:34]} b6 {[%emt 0:24:21]} 34. Rh5 {[%emt 0:24:21]} Re8 {[%emt 0:22:42]} 35. Rd5 {[%emt 0:22:42]} Ke6 {[%emt 0:22:29]} 36. Kg4 {[%emt 0:22:29]} cxb4 {[%emt 0:21:44]} 37. Bxb4 {[%emt 0:15:14]} Be5 {[%emt 0:20:55]} 38. Rb5 {[%emt 0:12:41]} Rd8 {[%emt 0:15:57]} 39. c5 {[%emt 0:10:40]} Rd4+ {[%emt 0:14:46]} 40. Kf3 {[%emt 0:06:52]} Bc7 {[%emt 0:11:24]} 41. cxb6 axb6 {[%emt 0:09:58]} 42. Rh5 {[%emt 0:04:06]} g5 {[%emt 0:07:36]} 43. Ke3 {[%emt 0:37:36]} Kd5 {[%emt 0:31:24]} 44. Rh7 {[%emt 0:31:24]} Bf4+ {[%emt 0:25:21]} 45. Kf3 {[%emt 0:24:28]} Rd3+ {[%emt 0:30:19]} 46. Kg4 {[%emt 0:30:19]} Ke4 {[%emt 0:29:26]} 47. Re7+ {[%emt 0:29:26]} Be5 {[%emt 0:22:35]} 48. h4 {[%emt 0:18:15]} Rg3+ {[%emt 0:18:15]} 49. Kh5 {[%emt 0:28:31]} Rh3 {[%emt 0:28:12]} 50. Be1 {[%emt 0:28:12]} gxh4 {[%emt 0:27:06]} 51. Re6 {[%emt 0:14:44]} Rxa3 {[%emt 0:14:44]} 52. Bxh4 {[%emt 0:14:13]} Rb3 {[%emt 0:14:13]} 53. Bxf6 {[%emt 0:13:17]} Kf5 {[%emt 0:16:01]} 54. Rxe5+ {[%emt 0:16:01]} Kxf6 {[%emt 0:15:56]} 55. Re1 {[%emt 0:15:56]} Kf5 {[%emt 0:11:30]} 56. Kh6 {[%emt 0:15:48]} b5 {[%emt 0:15:18]} 57. Kg7 {[%emt 0:15:18]} b4 {[%emt 0:14:37]} 58. Kf7 {[%emt 0:14:37]} Kf4 {[%emt 0:07:54]} 59. Kf6 {[%emt 0:07:31]} Re3 {[%emt 0:07:31]} 60. Rb1 {[%emt 0:14:17]} b3 {[%emt 0:13:40]} 61. Rh1 {[%emt 0:05:01]} Ke4 {[%emt 0:12:07]} 62. Rh8 {[%emt 0:03:40]} Kd3 {[%emt 0:03:40]} 63. Rd8+ {[%emt 0:11:32]} Kc2 {[%emt 0:11:16]} 64. Rc8+ {[%emt 0:01:22]} Rc3 {[%emt 0:11:04]} 65. Rh8 {[%emt 0:11:04]} b2 {[%emt 0:10:52]} 66. Rh2+ {[%emt 0:00:31]} Kb3 {[%emt 0:00:31]} 67. Rh8 {[%emt 0:10:40]} Rc4 {[%emt 0:00:16]} 68. Rh3+ {[%emt 0:00:07]} Ka2 {[%emt 0:10:19]} 69. Rh2 {[%emt 0:00:06]} Ka1 {[%emt 0:10:06]} 70. Ke5 0-1

[Event "30th NATO Chess-ch 2019"]
[Site "Berlin"]
[Date "2019.09.19"]
[Round "6.19"]
[White "Hof - Van Run, Rieke"]
[Black "Simard, Francois"]
[Result "1-0"]
[ECO "B23"]
[WhiteElo "2076"]
[BlackElo "1755"]
[Annotator "NA"]
[PlyCount "49"]
[EventDate "2019.09.16"]
[EventType "swiss"]
[EventCountry "GER"]
[SourceTitle "playchess.com"]
[Source "ChessBase"]
[SourceQuality "1"]
[TimeControl "40/7200:1800"]

1. e4 {[%emt 1:59:57]} c5 {[%emt 1:59:57]} 2. Nc3 {[%emt 1:59:27]} a6 {[%emt 1:58:33]} 3. f4 {[%emt 1:59:05]} e6 {[%emt 1:57:57]} 4. Nf3 {[%emt 1:57:13]} d5 {[%emt 1:57:13]} 5. d4 {[%emt 1:50:16]} dxe4 {[%emt 1:48:34]} 6. Nxe4 {[%emt 1:49:20]} cxd4 {[%emt 1:47:45]} 7. Qxd4 {[%emt 1:47:45]} Bd7 {[%emt 1:46:27]} 8. Ne5 {[%emt 1:43:23]} Be7 {[%emt 1:43:23]} 9. Nxd7 {[%emt 1:40:30]} Nxd7 {[%emt 1:31:06]} 10. Qxg7 {[%emt 1:39:03]} Bf6 {[%emt 1:30:48]} 11. Nxf6+ {[%emt 1:36:47]} Qxf6 12. Qxf6 {[%emt 1:36:24]} Ngxf6 {[%emt 1:29:31]} 13. g3 {[%emt 1:28:09]} O-O-O {[%emt 1:26:45]} 14. Be3 {[%emt 1:26:45]} Ne4 {[%emt 1:26:13]} 15. Bd4 {[%emt 1:17:06]} Rhg8 {[%emt 1:17:06]} 16. Bg2 {[%emt 1:15:29]} Nd6 {[%emt 1:20:08]} 17. O-O-O {[%emt 1:11:32]} Nf5 {[%emt 1:19:54]} 18. Bf2 {[%emt 1:10:27]} Nf6 {[%emt 1:19:33]} 19. Bf3 {[%emt 1:09:21]} Rxd1+ {[%emt 1:09:21]} 20. Rxd1 {[%emt 1:09:16]} Kc7 {[%emt 1:17:06]} 21. Rd3 {[%emt 1:17:06]} Nd6 {[%emt 1:16:22]} 22. Bc5 {[%emt 0:50:53]} Nfe4 {[%emt 1:15:22]} 23. Bb4 {[%emt 0:48:53]} Rd8 {[%emt 1:11:51]} 24. Bxe4 {[%emt 0:46:41]} Nxe4 {[%emt 0:46:41]} 25. Ba5+ {[%emt 0:46:35]} 1-0

[Event "30th NATO Chess-ch 2019"]
[Site "Berlin"]
[Date "2019.09.19"]
[Round "6.20"]
[White "Wagenaar, Harm Theo"]
[Black "Oltean, Gusztav"]
[Result "0-1"]
[ECO "B13"]
[WhiteElo "1879"]
[BlackElo "2053"]
[Annotator "NA"]
[PlyCount "58"]
[EventDate "2019.09.16"]
[EventType "swiss"]
[EventCountry "GER"]
[SourceTitle "playchess.com"]
[Source "ChessBase"]
[SourceQuality "1"]
[TimeControl "40/7200:1800"]

1. d4 {[%emt 1:59:40]} Nf6 {[%emt 1:59:40]} 2. Nf3 {[%emt 1:59:23]} c5 {[%emt 1:59:43]} 3. e3 {[%emt 1:57:54]} cxd4 4. exd4 {[%emt 1:57:45]} d5 {[%emt 1:59:06]} 5. Bd3 {[%emt 1:59:06]} Bg4 {[%emt 1:57:52]} 6. c3 {[%emt 1:55:02]} Nc6 {[%emt 1:57:43]} 7. h3 {[%emt 1:57:43]} Bh5 {[%emt 1:53:01]} 8. O-O {[%emt 1:51:47]} e6 {[%emt 1:51:47]} 9. Nbd2 {[%emt 1:47:21]} Bd6 {[%emt 1:47:21]} 10. Re1 {[%emt 1:49:03]} Qc7 {[%emt 1:44:26]} 11. Qc2 {[%emt 1:44:26]} O-O {[%emt 1:43:20]} 12. b3 {[%emt 1:36:04]} Rac8 {[%emt 1:36:04]} 13. a3 {[%emt 1:35:44]} Bf4 {[%emt 1:38:04]} 14. Bb2 {[%emt 1:32:32]} Bxd2 {[%emt 1:32:32]} 15. Qxd2 {[%emt 1:31:29]} Bxf3 {[%emt 1:31:29]} 16. gxf3 {[%emt 1:31:20]} Ne7 {[%emt 1:31:20]} 17. Qg5 {[%emt 1:29:49]} Ng6 {[%emt 1:21:56]} 18. Bf1 {[%emt 1:19:23]} h6 {[%emt 1:19:23]} 19. Qg3 {[%emt 1:16:16]} Nf4 {[%emt 1:22:53]} 20. Bc1 {[%emt 1:09:43]} N6h5 {[%emt 1:18:11]} 21. Bxf4 {[%emt 1:08:26]} Nxf4 {[%emt 1:08:26]} 22. b4 {[%emt 1:17:30]} g5 {[%emt 1:07:24]} 23. h4 {[%emt 1:14:23]} Qe7 {[%emt 1:13:56]} 24. hxg5 {[%emt 1:05:53]} hxg5 {[%emt 1:05:53]} 25. Re3 {[%emt 1:13:46]} Kg7 {[%emt 1:01:35]} 26. Bg2 {[%emt 1:12:41]} Rxc3 {[%emt 1:05:08]} 27. Kf1 {[%emt 1:05:08]} Rfc8 {[%emt 0:55:31]} 28. Rxc3 {[%emt 0:55:02]} Rxc3 {[%emt 1:04:12]} 29. Ke1 {[%emt 1:04:12]} f6 {[%emt 1:03:50]} 0-1

[Event "30th NATO Chess-ch 2019"]
[Site "Berlin"]
[Date "2019.09.19"]
[Round "6.21"]
[White "Filion, Charles"]
[Black "Oblak, Nicholas"]
[Result "0-1"]
[ECO "D00"]
[WhiteElo "2199"]
[BlackElo "2048"]
[Annotator "NA"]
[PlyCount "48"]
[EventDate "2019.09.16"]
[EventType "swiss"]
[EventCountry "GER"]
[SourceTitle "playchess.com"]
[Source "ChessBase"]
[SourceQuality "1"]
[TimeControl "40/7200:1800"]

1. d4 {[%emt 2:00:00]} d5 {[%emt 1:59:49]} 2. Nc3 {[%emt 1:59:49]} Nf6 {[%emt 1:59:31]} 3. Bf4 {[%emt 1:56:45]} a6 {[%emt 1:56:20]} 4. e3 {[%emt 1:59:08]} Bf5 {[%emt 1:59:08]} 5. f3 {[%emt 1:58:52]} e6 {[%emt 1:52:42]} 6. g4 {[%emt 1:57:56]} Bg6 {[%emt 1:57:56]} 7. h4 {[%emt 1:52:33]} h6 {[%emt 1:50:17]} 8. Bd3 {[%emt 1:57:23]} Bxd3 {[%emt 1:48:54]} 9. Qxd3 {[%emt 1:57:11]} Bd6 {[%emt 1:57:11]} 10. Nge2 {[%emt 1:56:41]} Nc6 {[%emt 1:46:54]} 11. O-O-O {[%emt 1:46:54]} Qe7 {[%emt 1:33:08]} 12. Kb1 {[%emt 1:45:56]} O-O-O {[%emt 1:25:38]} 13. Bxd6 {[%emt 1:37:39]} Qxd6 {[%emt 1:23:07]} 14. Na4 {[%emt 1:23:07]} Nd7 {[%emt 1:05:39]} 15. a3 {[%emt 1:15:52]} b5 {[%emt 0:48:28]} 16. Nac3 {[%emt 1:11:53]} Nb6 {[%emt 0:45:26]} 17. e4 {[%emt 0:45:26]} Kb7 {[%emt 1:11:34]} 18. e5 {[%emt 1:10:10]} Qe7 {[%emt 0:36:15]} 19. Na2 {[%emt 1:06:52]} Nc4 {[%emt 0:35:29]} 20. b4 {[%emt 0:59:08]} Ra8 {[%emt 0:59:08]} 21. Qb3 {[%emt 0:27:48]} a5 {[%emt 0:23:47]} 22. bxa5 {[%emt 0:49:28]} Rxa5 {[%emt 0:49:28]} 23. a4 {[%emt 0:48:54]} Ka7 {[%emt 0:48:54]} 24. Kc1 {[%emt 0:46:28]} Rb8 {[%emt 0:46:28]} 0-1